Cogmind - Beta 17.1 @@@ ROGUE MODE // 2026.09.16 @ 11:43:41 Player: Caluan Result: Destroyed by H-61 Shepherd with Heavy Assault Cannon Performance ------------- Evolutions (2) 1000 Regions Visited (5) 1000 Robots Destroyed (130) 650 Value Destroyed (3339) 3339 Prototype IDs (2) 40 Alien Tech Used (0) 0 Bonus (149) 149 TOTAL SCORE: 6178 Bonus ------- High Alert Combat Kills 56 Follower Combat Kills 93 Cogmind --------- Core Integrity 0/550 Matter 43/300 Energy 11/100 System Corruption 6% Temperature Cool (18) Movement Treading (330) Ox2 Location -8/Materials Parts ------- > --- POWER (1) -------- (None) > --- PROPULSION (3) --- Armored Treads Armored Treads > --- UTILITY (4) ------ Huge Storage Unit > --- WEAPON (3) ------- Blade Saw > --- INVENTORY (25) --- Armored Treads Huge Storage Unit High-capacity Battery (250) High-capacity Matter Pod (200) Authchip [R/Combat] Authchip [R/Combat] Authchip [R/Combat] Authchip [R/Combat] Authchip [Weapon] Datajack Plasma Cutter Peak State ------------ > --- POWER ------------ Light Nuclear Core > --- PROPULSION ------- Light Treads Light Treads Armored Treads > --- UTILITY ---------- Improved Cooling System Huge Storage Unit Hardened Medium Armor Plating Improved Shield Generator > --- WEAPON ----------- Shotgun Shotgun Shock Bomb Launcher > --- INVENTORY -------- Light Treads Light Treads Light Treads Light Treads Light Treads Light Treads Armored Treads Armored Treads Armored Treads Huge Storage Unit High-capacity Battery High-capacity Matter Pod Authchip [R/Combat] Authchip [R/Combat] Authchip [R/Combat] Authchip [R/Combat] Authchip [Weapon] Heavy Assault Rifle Heavy Assault Rifle High-powered Shotgun Rocket Launcher Datajack Plasma Cutter Blade Saw [Rating: 32] Favorites ----------- Power Ion Engine Engine Ion Engine Power Core Light Nuclear Core Propulsion Light Treads Treads Light Treads Utility Huge Storage Unit Device Shield Generator Storage Huge Storage Unit Protection Reflective Plating Weapon Shotgun Energy Gun Medium Laser Ballistic Gun Shotgun Launcher Rocket Launcher Slashing Weapon Blade Saw Build | -11 -10 -10 -9 -9 -8 ------- Run | Yrd Mat Min Mat Min Mat Slots Evolved 4 | . . . 2 . 2 Power . | . . . . . . Propulsion 1 | . . . 1 . . Utility 2 | . . . 1 . 1 Weapon 1 | . . . . . 1 Parts Attached 75 | 6 7 1 16 15 30 Power 11 | 1 3 . 1 3 3 Engine 10 | 1 3 . 1 3 2 Core 1 | . . . . . 1 Reactor . | . . . . . . Propulsion 32 | 2 . 1 8 6 15 Treads 32 | 2 . 1 8 6 15 Leg . | . . . . . . Wheel . | . . . . . . Hover . | . . . . . . Flight . | . . . . . . Utility 12 | 1 3 . 2 2 4 Device 4 | . 1 . . . 3 Storage 3 | 1 2 . . . . Processor . | . . . . . . Hackware . | . . . . . . Protection 5 | . . . 2 2 1 Artifact . | . . . . . . Weapon 20 | 2 1 . 5 4 8 Energy Gun 1 | 1 . . . . . Energy Cannon . | . . . . . . Ballistic Gun 14 | 1 1 . 4 2 6 Ballistic Cannon . | . . . . . . Launcher 4 | . . . 1 2 1 Special Weapon . | . . . . . . Impact Weapon . | . . . . . . Slashing Weapon 1 | . . . . . 1 Piercing Weapon . | . . . . . . Special Melee Weapon . | . . . . . . Unidentified Prototypes 2 | . . . 2 . . Parts Lost 40 | . 1 1 3 14 21 Power 6 | . 1 . . 1 4 Propulsion 14 | . . . 1 6 7 Utility 8 | . . 1 1 3 3 Weapon 12 | . . . 1 4 7 Highest Loss Streak 16 | . 1 1 1 6 16 To Critical Strikes . | . . . . . . Average Backups 17 | . 8 14 21 20 20 Power . | . . . 1 1 . Propulsion 5 | . 2 4 7 5 7 Utility 5 | . 1 3 5 8 7 Weapon 4 | . 4 6 5 3 3 Tool/Special . | . . . . . . Unused Backups 12 | . . . 2 . 10 Power . | . . . . . . Propulsion 1 | . . . 1 . . Utility 8 | . . . . . 8 Weapon 1 | . . . 1 . . Tool/Special 2 | . . . . . 2 Average Slot Usage (%) 89 | . 94 86 93 80 85 Engine 10 | . 13 14 11 10 4 Treads 29 | . 28 28 32 32 26 Device 4 | . 8 1 . . 9 Storage 11 | . 14 14 11 11 9 Protection 6 | . . . 15 4 6 Energy Gun 1 | . 5 . . . . Ballistic Gun 23 | . 22 28 22 20 25 Peak Build Rating 32 | 6 11 11 24 22 32 Average Rating 16 | 4 8 9 19 18 24 On Entrance 10 | . 6 11 9 21 18 Avg Prop Armor Cover (%) . | . . . . . . Naked Turns . | . . . . . . Heaviest Build 108 | 12 92 92 102 101 108 Greatest Support 66 | 40 40 40 63 66 63 Greatest Overweight (x) 2 | . 2 2 1 1 1 Average Overweight (x) 1 | . . 2 1 1 1 Largest Inventory Capacity 25 | 8 25 25 25 25 25 Average Capacity 23 | 7 17 25 25 25 25 Most Carried 25 | 2 14 15 25 25 24 Average Carried 17 | . 8 14 21 20 20 Final Capacity 25 | 8 25 25 25 25 25 Final Carried 25 | 2 14 15 25 18 11 Class Distribution -------------------- 80% | Mutant 13% | Scavenger-Tank 4% | Gunner Dominant Class ---------------- Mutant | -10/Materials Mutant | -10/Mines Mutant | -9/Materials Mutant | -9/Mines Scavenger-Tank | -8/Materials Resources | -11 -10 -10 -9 -9 -8 ----------- Run | Yrd Mat Min Mat Min Mat Matter Collected 3118 | 182 359 289 702 451 1135 Remotely . | . . . . . . Salvage Created 4400 | . 493 148 1370 377 2012 Parts 276 | . 40 14 90 11 121 Haulers Intercepted 8 | . 1 . 5 . 2 Recyclers Shooed 6 | . . . 1 1 4 Parts Field Recycled . | . . . . . . Retrieved Matter . | . . . . . . Parts Self-Destructed . | . . . . . . Prevented . | . . . . . . Parts Restored . | . . . . . . Kills | -11 -10 -10 -9 -9 -8 ------- Run | Yrd Mat Min Mat Min Mat Combat Hostiles Destroyed 118 | . 21 8 28 25 36 Guns 97 | . 21 8 25 10 33 AOE 20 | . . . 3 15 2 Classes Destroyed 17 | . 4 . 6 2 5 Worker 7 | . . . 4 . 3 Builder 2 | . . . . . 2 Tunneler 1 | . . . . . 1 Hauler 8 | . 1 . 5 . 2 Recycler 6 | . . . 2 . 4 Operator 1 | . . . 1 . . Watcher 6 | . 2 . 2 . 2 Swarmer 29 | . 15 6 8 . . Cutter 4 | . . . . . 4 Grunt 39 | . 6 2 10 2 19 Brawler 4 | . . . 1 1 2 Duelist 1 | . . . 1 . . Sentry 17 | . . . 8 1 8 Demolisher 1 | . . . . 1 . Specialist 2 | . . . . . 2 Hunter 1 | . . . . . 1 Assembled 19 | . . . . 19 . Best Kill Streak 16 | . 5 3 7 16 6 Combat Bots Only 16 | . 4 3 5 16 4 Max Kills in Single Turn 3 | . 2 1 2 3 2 Gunslinging 1 | . 1 . 1 . . Exploded 3 | . . . 2 3 1 Melee . | . . . . . . Uniques/NPCs Destroyed 1 | . . . . 1 . YI-UF0 (-9/Mines) Combat | -11 -10 -10 -9 -9 -8 -------- Run | Yrd Mat Min Mat Min Mat Hostile Shots Fired 624 | . 78 50 108 116 272 Missed 176 | . 22 14 30 36 74 Hits 448 | . 56 36 78 80 198 Melee 40 | . . . 3 9 28 Projectile 408 | . 56 36 75 71 170 AOE 32 | . . . . 29 3 Critical Strikes 24 | . . . 3 . 21 Damage Taken 7452 | . 497 294 899 1897 3865 Core 927 | . 88 59 53 140 587 Absorbed by Shields 197 | . 43 48 . . 106 Ignored by Resistances 61 | . . . 61 . . Core Remaining (%) 64 | 100 . 41 . 51 . Volleys Fired 324 | . 55 23 77 53 116 Largest 3 | . 2 2 2 2 3 Hottest 71 | . 70 43 46 46 71 Shots Fired 682 | . 106 46 148 87 295 Gun 658 | . 106 46 146 75 285 Cannon . | . . . . . . Launcher 24 | . . . 2 12 10 Special . | . . . . . . Kinetic 620 | . 68 46 146 75 285 Thermal 38 | . 38 . . . . Explosive 19 | . . . 2 12 5 Electromagnetic 5 | . . . . . 5 Robot Hit Streak 18 | . 10 9 18 14 15 Robot Miss Streak 8 | . 6 7 4 5 8 Penetration Max . | . . . . . . Secondary Targets 13 | . 2 . 6 1 4 Max Gunslinging Chain 1 | . 1 . 1 1 1 Shots Hit Robots 468 | . 60 27 112 50 219 Core Hits 290 | . 34 11 68 50 127 Critical Kills 2 | . . . 2 . . Critical Parts Destroyed 3 | . . . . 1 2 Critical Strikes 11 | . 3 . 2 1 5 Burn 3 | . 3 . . . . Destroy 5 | . . . 2 1 2 Sever 3 | . . . . . 3 Melee Attacks 6 | . . . . . 6 Impact . | . . . . . . Slashing 6 | . . . . . 6 Piercing . | . . . . . . Sneak Attacks . | . . . . . . Combat Hostiles . | . . . . . . Follow-up Attacks . | . . . . . . Damage Inflicted 9152 | . 832 374 2112 1494 4340 Guns 7137 | . 798 374 1832 693 3440 Cannons . | . . . . . . Explosions 1751 | . . . 136 793 822 Melee 78 | . . . . . 78 Ramming 186 | . 34 . 144 8 . Kinetic 6826 | . 487 374 1832 693 3440 Thermal 383 | . 311 . . . 72 Explosive 1360 | . . . 136 793 431 Electromagnetic 319 | . . . . . 319 Impact . | . . . . . . Slashing 78 | . . . . . 78 Piercing . | . . . . . . Highest Corruption 6 | . . . . . 6 Average Corruption 4 | . . . . . 4 Corruption Purged . | . . . . . . Corruption Blocked . | . . . . . . Effects 5 | . . . . . 5 Message Errors 4 | . . . . . 4 Data Loss (major) 1 | . . . . . 1 Overload Shots . | . . . . . . Overflow Damage 52 | . . . 5 8 39 Projectiles . | . . . . . . Explosions 47 | . . . . 8 39 Melee 5 | . . . 5 . . Knockbacks . | . . . . . . Impact . | . . . . . . Kinetic . | . . . . . . Secondary . | . . . . . . Self-Inflicted Damage 292 | . . . 22 86 184 Shots 12 | . . . 1 3 8 Rammed 20 | . 5 . 13 1 1 Targets Rammed 24 | . 6 . 16 1 1 Kicked . | . . . . . . Crushed 4 | . 1 . 3 . . Highest Temperature 85 | . 78 16 28 13 85 Average Temperature 18 | . 20 8 10 9 20 Received Heat Transfer 1549 | . 84 54 324 88 999 Siege Activations . | . . . . . . Martial Activations . | . . . . . . Shielding Activations . | . . . . . . Robots Disrupted . | . . . . . . Combat Hostiles . | . . . . . . Robots Corrupted 2 | . . . 1 . 1 Combat Hostiles 1 | . . . . . 1 Parts Fried 2 | . . . 1 . 1 Impact Corruptions 1 | . . . 1 . . Robots Melted . | . . . . . . Combat Hostiles . | . . . . . . Parts Melted 3 | . 3 . . . . Heat Transferred 1247 | . 1147 . . . 100 Parts Sabotaged . | . . . . . . Parts Stolen . | . . . . . . Parts Stripped . | . . . . . . Power Chain Reactions 2 | . . . . . 2 Alert | -11 -10 -10 -9 -9 -8 ------- Run | Yrd Mat Min Mat Min Mat Maximum Alert Level 2 | . . . 2 . 1 Low Security (%) 73 | 100 100 100 49 100 40 Level 1 14 | . . . 7 . 59 Level 2 12 | . . . 43 . . Level 3 . | . . . . . . Level 4 . | . . . . . . Level 5 . | . . . . . . High Security . | . . . . . . Max Security . | . . . . . . Peak Influence 475 | . 116 70 475 187 389 Initial 177 | . . 21 . 177 15 Average 125 | . 40 12 229 40 217 Influence Increases 2975 | . 554 190 971 183 1077 Destroy 0b10 Robot/C 2020 | . 420 160 620 100 720 Destroy 0b10 Robot/NC 155 | . 15 . 70 . 70 Destroy Leader 498 | . 86 30 184 20 178 Allied During Kill 16 | . . . 16 . . Successful Hack 21 | . . . 16 . 5 Disable Machine 15 | . . . . . 15 Destroy Structure 130 | . 3 . 20 63 44 Lose Combat Pursuer 120 | . 30 . 45 . 45 Influence Decreases 2624 | . 498 246 516 598 766 Entered New Map 338 | . . 35 . 278 25 Time Decay 1955 | . 488 210 476 250 531 Lost Part 311 | . 10 1 20 70 210 Lost Ally 20 | . . . 20 . . Squads Dispatched 17 | . 3 . 3 . 11 Investigation 1 | . 1 . . . . Extermination . | . . . . . . Reinforcement 11 | . 2 . 3 . 6 Assault . | . . . . . . Garrison 5 | . . . . . 5 Intercept . | . . . . . . Searches Triggered . | . . . . . . Construction Impeded 1 | . . . . . 1 Haulers Reinforced . | . . . . . . Active Scanning Responses . | . . . . . . Cargo Convoy Interrupts . | . . . . . . Stealth | -11 -10 -10 -9 -9 -8 --------- Run | Yrd Mat Min Mat Min Mat Distress Signals 14 | . 3 . 6 . 5 Communications Jammed . | . . . . . . Distress Signals . | . . . . . . Times Spotted 188 | . 36 8 55 29 60 Peak Tracking Total 12 | . 4 3 7 12 7 Tactical Retreats 9 | . 2 . 3 1 3 Traps | -11 -10 -10 -9 -9 -8 ------- Run | Yrd Mat Min Mat Min Mat Traps Triggered 3 | . 2 . 1 . . Indirectly . | . . . . . . Trap Hack Attempts . | . . . . . . Triggered . | . . . . . . Disarmed . | . . . . . . Reprogrammed . | . . . . . . Reused . | . . . . . . Traps Extracted . | . . . . . . Installed . | . . . . . . Triggered . | . . . . . . Machines | -11 -10 -10 -9 -9 -8 ---------- Run | Yrd Mat Min Mat Min Mat Machines Disabled 2 | . . . 1 . 1 Max in Single Turn 1 | . . . 1 . 1 Machines Repaired . | . . . . . . Machines Dismantled . | . . . . . . Machines Sabotaged . | . . . . . . Overloaded Fab Kills . | . . . . . . Hacking | -11 -10 -10 -9 -9 -8 --------- Run | Yrd Mat Min Mat Min Mat Machines Accessed 14 | . 3 . 7 . 4 Terminals 7 | . 2 . 3 . 2 Fabricators . | . . . . . . Repair Stations 4 | . 1 . 2 . 1 Recycling Units . | . . . . . . Scanalyzers 3 | . . . 2 . 1 Garrison Access . | . . . . . . Total Hacks 19 | . 5 . 9 . 5 Successful 13 | . 3 . 7 . 3 Failed 5 | . 2 . 1 . 2 Catastrophic 3 | . 2 . . . 1 Database Lockouts 1 | . . . 1 . . Manual 11 | . 4 . 4 . 3 Terminals 10 | . 4 . 3 . 3 Fabricators . | . . . . . . Repair Stations 4 | . 1 . 2 . 1 Recycling Units . | . . . . . . Scanalyzers 5 | . . . 4 . 1 Garrison Access . | . . . . . . Terminal Hacks . | . . . . . . Fabricator Hacks . | . . . . . . Repair Station Hacks . | . . . . . . Recycling Unit Hacks . | . . . . . . Scanalyzer 4 | . . . 3 . 1 Retrieve Study 4 | . . . 3 . 1 Garrison Access Hacks . | . . . . . . Unauthorized Hacks 9 | . 3 . 4 . 2 Terminals 5 | . 2 . 2 . 1 Botnet 5 | . 2 . 2 . 1 Fabricators . | . . . . . . Repair Stations 4 | . 1 . 2 . 1 Mechanics 4 | . 1 . 2 . 1 Recycling Units . | . . . . . . Scanalyzers . | . . . . . . Garrison Access . | . . . . . . Data Cores Recovered . | . . . . . . Used . | . . . . . . Hacking Detections 9 | . 2 . 4 . 3 Full Trace Events . | . . . . . . Feedback Events . | . . . . . . Feedback Blocked . | . . . . . . Robot Schematics Acquired . | . . . . . . Robots Built . | . . . . . . Authchips . | . . . . . . Time . | . . . . . . Total Robot Build Rating . | . . . . . . Part Schematics Acquired . | . . . . . . Parts Built . | . . . . . . Authchips . | . . . . . . Time . | . . . . . . Total Part Build Rating . | . . . . . . Part Studies Acquired 4 | . . . 3 . 1 Parts Repaired . | . . . . . . Time . | . . . . . . Parts Recycled . | . . . . . . Recycled Matter . | . . . . . . Retrieved Matter . | . . . . . . Retrieved Components . | . . . . . . Parts Scanalyzed . | . . . . . . Part Schematics Acquired . | . . . . . . Parts Damaged . | . . . . . . Bothacking | -11 -10 -10 -9 -9 -8 ------------ Run | Yrd Mat Min Mat Min Mat Used RIF Installer . | . . . . . . Robots Hacked . | . . . . . . Non-combat . | . . . . . . Combat . | . . . . . . Robot Hacks Applied . | . . . . . . Relay Couplers Released . | . . . . . . Fabnet Peak Effective % . | . . . . . . Robots Rewired . | . . . . . . Allies Hacked . | . . . . . . Hacks Repelled . | . . . . . . Allies | -11 -10 -10 -9 -9 -8 -------- Run | Yrd Mat Min Mat Min Mat Total Allies 3 | . . 3 . . . Largest Group 3 | . . 3 3 . . Highest-Rated Group 40 | . . 40 40 . . Highest-Rated Ally 16 | . . 16 16 . . Total Orders . | . . . . . . Ally Attacks 24 | . . . 24 . . Total Damage 291 | . . . 291 . . Kills 4 | . . . 4 . . Allies Corrupted . | . . . . . . Allies Melted . | . . . . . . Intel | -11 -10 -10 -9 -9 -8 ------- Run | Yrd Mat Min Mat Min Mat Active Infowar (turns) . | . . . . . . Robot Analysis Total . | . . . . . . Derelict Logs Recovered 2 | . . 1 . 1 . Drone Launches . | . . . . . . Drone Recoveries . | . . . . . . Exploration | -11 -10 -10 -9 -9 -8 ------------- Run | Yrd Mat Min Mat Min Mat Turns Passed 9060 | 149 1869 1328 2593 1293 1828 Spaces Moved 3159 | 89 681 393 944 487 565 Core 5 | 5 . . . . . Treads 3154 | 84 681 393 944 487 565 Legs . | . . . . . . Wheels . | . . . . . . Hover . | . . . . . . Flight . | . . . . . . Fastest Speed 50 | 50 160 320 213 213 200 Average Speed 239 | 153 234 320 233 231 219 Slowest Speed 320 | 160 320 320 240 243 229 Overloaded Moves . | . . . . . . Propulsion Burnouts . | . . . . . . Robots Hopped . | . . . . . . Potential Cave-ins . | . . . . . . Cave-ins Triggered . | . . . . . . Exploration Rate (%) 68 | 4 96 89 86 90 47 Regions Visited 5 Branch Regions 2 Pre-discovered Areas 2 | . . 1 . 1 . Known Exits Taken . | . . . . . . Unknown Exits Taken 5 | 1 1 1 1 1 . Scrap Searched 4 | . . 2 . 2 . Spaces Dug . | . . . . . . Terrain Destroyed 150 | . . . 11 86 53 Melee . | . . . . . . Projectile . | . . . . . . AOE 150 | . . . 11 86 53 Terrain Rammed . | . . . . . . Walls Destroyed . | . . . . . . Machines Disabled . | . . . . . . Actions | -11 -10 -10 -9 -9 -8 --------- Run | Yrd Mat Min Mat Min Mat Total 3999 | 101 840 419 1165 565 909 Wait 296 | . 72 . 77 1 146 Move 3154 | 88 680 392 943 486 565 Hop . | . . . . . . Pick Up 77 | 7 16 2 22 4 26 Fast Attach 13 | 1 1 . 4 4 3 Attach 43 | 5 1 . 3 10 24 Detach . | . . . . . . Swap 31 | . 5 1 9 4 12 Drop 31 | . 4 1 14 2 10 Fire 324 | . 55 23 77 53 116 Melee 6 | . . . . . 6 Ram . | . . . . . . Kick . | . . . . . . Crush 24 | . 6 . 16 1 1 Escape Stasis . | . . . . . . Rewire . | . . . . . . Trap . | . . . . . . Miscellaneous . | . . . . . . Route ------- -11/Scrapyard -10/Materials (discovered 5 exits: *Mat x3 / [*Min x2]) -10/Mines -9/Materials (discovered 5 exits: *Mat x3 / [*Min x2]) -9/Mines -8/Materials (discovered 2 exits: [*Fac] / *Sto) History --------- Turn | Location | Event 8 | -11/Scrapyard | Discovered new exit (range 15) 150 | -11/Scrapyard | Entered Materials 303 | -10/Materials | Build established: Mutant 345 | -10/Materials | Discovered new exit (range 16) 774 | -10/Materials | Discovered new exit (range 8) 1299 | -10/Materials | Discovered new exit (range 11) 1353 | -10/Materials | Discovered new exit (range 10) 1641 | -10/Materials | Discovered new exit (range 16) 2019 | -10/Materials | Entered Mines 2165 | -10/Mines | Core integrity fell below 50% 2619 | -10/Mines | Learned location of Mines (-8) 3024 | -10/Mines | Received a Rocket Launcher from a helpful Derelict 3296 | -10/Mines | Discovered new exit (range 9) 3337 | -10/Mines | Assisted by bots powering up and referring to "LRC-V3" 3347 | -10/Mines | Entered Materials 3347 | -9/Materials | Accompanied by 3 allies 3347 | -9/Materials | Evolved 2 slots: Propulsion x1, Utility x1 3548 | -9/Materials | Discovered new exit (range 9) 3777 | -9/Materials | Discovered new exit (range 14) 4985 | -9/Materials | Discovered new exit (range 12) 5375 | -9/Materials | Discovered new exit (range 14) 5404 | -9/Materials | Central database locked down 5763 | -9/Materials | Discovered new exit (range 5) 5940 | -9/Materials | Entered Mines 5955 | -9/Mines | Joined a pair of Derelicts in attacking an 0b10 outpost 6083 | -9/Mines | Assembled infested the area 6177 | -9/Mines | Destroyed 16 combat bots 6181 | -9/Mines | Lost 3 parts (1n1u1w) 6438 | -9/Mines | Destroyed YI-UF0 6468 | -9/Mines | Lost 6 parts (2n2u2w) 6672 | -9/Mines | Learned location of Storage (-8) 7215 | -9/Mines | Discovered new exit (range 9) 7233 | -9/Mines | Entered Materials 7233 | -8/Materials | Evolved 2 slots: Utility x1, Weapon x1 7234 | -8/Materials | Identified exit to Storage 7581 | -8/Materials | Garrison activated, responded to threat 7613 | -8/Materials | Build established: Gunner 7785 | -8/Materials | Garrison activated, responded to threat 7972 | -8/Materials | Build established: Scavenger-Tank 8560 | -8/Materials | Discovered new exit (range 13) 8953 | -8/Materials | Core integrity fell below 50% 9030 | -8/Materials | Core integrity fell below 20% 9032 | -8/Materials | Garrison activated, responded to threat 9061 | -8/Materials | Destroyed by H-61 Shepherd with Heavy Assault Cannon Last Messages --------------- Lgt. Treads+ destroyed. Destroyed Lgt. Treads+. W-25 Informer destroyed. R-06 Scavenger collects Corrupted Concussive RPG. Chain reaction triggered in Lgt. Ion Engine. Shock Bomb Launcher destroyed. Destroyed Shock Bomb Launcher. Knocked back. G-47 Trooper IFF system glitched. G-47 Trooper system terminally corrupted. Lgt. Nuclear Core fried. Hvy. Assault Rifle destroyed. 1TY5ZP2KNHWZ : LH0EB3 R-06 Scavenger collects Corrupted Surge Thruster. Critical hit (Burn: +37). R-06 Scavenger collects Surge Thruster. R-06 Scavenger collects Corrupted Surge Thruster. Map ----- +----------------------------------------------------+ | | | | | | | | | | | | | | | | | ?????????????????????????????????????????????????? | | ?????????????????????????????????????????????????# | | ?????????????????????????????????????????????????# | | ?????????????????????????????????????????????????# | | ?????????????????????????????????????????????????# | | ????????????########?????????????????????????????# | | ????????????# % #?????????????????????????????# | | ????????????# #?????????????????????????????# | | ????????????# """#???????###???????????????????# | | ????????????# """#?######; ###?????????????????# | | ????????????# [ """#?# #?????????????????? | | ????????????# =[! #?# !! #?????????????????? | | ????############"##### """" ! #?????????????????? | | ????# """ +=%* + """" ! #?????????????????? | | #+### ! "R" ## ##### " " #?????????????????? | | # " " ## #?### %* #?????????????????? | | # !] ## #?# / ] #?????????????????? | | ?# # ]] """ ## ### % r@ #?????????????????# | | ?# # """ ## ##; % ;####""#?????????????+ | | ?# / "# *H=% ??????????# | | ?# !# ## % = % |u ?????????? | | ## %## ########; % g%* % Y #????????? | | # =!!##############+##g =# ######+### #????????? | | + %!= = + ######?????? ?????????????? | | # [=%= # * #?????????????# ????????#### | | # !## #### # #?????????????# ####### * | | ## ### #????# #?????????????# % | | ?# #?# #??? + #?????????????# % T | | ?# #?# #??# # #?????????????# % | | ? ### #??# ########?????????????###########!%= | | # # #??#????????????????????????????????## | | ##### # ##???????????????????????????????????# | | ? # ##??????????????##########???????????# | | "" # ##??????????????# #???????????# | | "" # ####+###????????# #???????????# | | "" # # # ! #????????# #???????????# | | ? # %# #????????# #???????????# | | ??"" # #/ " ?????????# !!! #???????????#% | | ???" # # ""??????????# !!! #???????????# | | ????# # +% S???????????# !! #???????????# | | ????# # # ?????????????? !#???????????# | | ????# # %# #????????????????? #######?????# | +----------------------------------------------------+ Best States ------------- Heat Dissipation 58 Energy Generation 18 Energy Capacity 280 Matter Stores 300 Matter Capacity 300 Sight Range 16 Terrain Scan Density 10 Armor Coverage 300 Resistance: TH 10 Evasion (%) 40 Recoil Reduction 3 Authchip Count 5 Item Schematics ----------------- None Robot Schematics ------------------ None Fabricated ------------ Nothing Repaired ---------- Nothing Studied --------- Shotgun | -9/Materials | Hacked EM Pulse Gun | -9/Materials | Hacked Lgt. Treads | -9/Materials | Hacked Rnf. Ion Engine | -8/Materials | Hacked Alien Tech Used ----------------- None Achievements -------------- None Challenges ------------ None Game ------ Seed WarpScatterCorpse Manual? 0 Play Time 00:43:29 Cumulative 277.7 hours Start 2026.09.16 @ 10:53:36 End 2026.09.16 @ 11:43:41 Sessions 1 Manual Loads 0 Difficulty Rogue Special Mode None Game No. 303 Rogue 303 Adventurer 0 Explorer 0 Win Type - Total 3 Types 3/0/0/0/0/0/0/0/0/0 Lore% 33 Gallery% 57 Achievement% 40 Wizard Run 0 Options --------- Layout 1 ASCII 0 Keyboard 0 Movement Numpad Keybinds 0 Fullscreen 2 Font 24/Smallcaps Map View 50x35 Zoom Use 0% Tactical HUD 0 Map Filters NONE Filters NONE Steam 1 RUN: b98399ba-26a1-4ef4-b6e5-9af1c1f03a85